{"text_format":"1","workbook":"xlsx","n_sheets":11,"sheets":["Macro1","inventaire VTUTP (2)","CdC","verification des vehicules","inventaire VSAV","inventaire FPT","inventaire VTUTP","inventaire RSR","inventaire VLCDG","inventaire LOTS PROMPT SECOURS","validation de donnees"],"not_rendered":{"charts":0,"images":1,"macros":1,"external_links":1,"defined_names":9,"comments":0,"pivot_tables":0},"unopened":[],"bounds":{"document_bytes":16777216,"sheet_cells":100000,"rows_first":2000,"rows_last":500,"rows_between":2000,"halvings":0,"cell_chars":16384,"cell_head_chars":4096},"cells_cut":0,"cells_raw":0,"read":"whole","date_system":"1900"}

{"sheet":"Macro1","index":0,"n_rows":0,"n_cols":0,"rows_kept":0,"cut":false,"hidden":false,"merged":[]}

{"sheet":"inventaire VTUTP (2)","index":1,"n_rows":98,"n_cols":8,"rows_kept":98,"cut":false,"hidden":false,"merged":[[2,6,2,7],[3,0,3,3],[4,0,4,3],[4,6,4,7],[5,0,5,3],[5,6,5,7],[9,0,9,3],[9,6,9,7],[10,0,10,3],[10,6,10,7],[11,0,11,3],[11,6,11,7],[6,0,6,3],[6,6,6,7],[7,0,7,3],[7,6,7,7],[8,0,8,3],[8,6,8,7],[15,0,15,3],[15,6,15,7],[16,0,16,3],[16,6,16,7],[17,0,17,3],[17,6,17,7],[12,0,12,3],[12,6,12,7],[13,0,13,3],[13,6,13,7],[14,0,14,3],[14,6,14,7],[21,0,21,3],[21,6,21,7],[22,0,22,3],[22,6,22,7],[23,0,23,3],[23,6,23,7],[18,0,18,3],[18,6,18,7],[19,0,19,3],[19,6,19,7],[20,0,20,3],[20,6,20,7],[27,0,27,3],[27,6,27,7],[28,0,28,3],[28,6,28,7],[29,0,29,3],[29,6,29,7],[24,0,24,3],[24,6,24,7],[25,0,25,3],[25,6,25,7],[26,0,26,3],[26,6,26,7],[33,0,33,3],[33,6,33,7],[34,0,34,3],[34,6,34,7],[35,0,35,3],[36,0,36,3],[36,6,36,7],[30,0,30,3],[30,6,30,7],[31,0,31,3],[31,6,31,7],[32,0,32,3],[32,6,32,7],[40,0,40,3],[40,6,40,7],[41,0,41,3],[41,6,41,7],[42,0,42,3],[42,6,42,7],[37,0,37,3],[37,6,37,7],[38,0,38,3],[38,6,38,7],[39,0,39,3],[39,6,39,7],[46,0,46,3],[46,6,46,7],[47,0,47,3],[47,6,47,7],[48,0,48,3],[48,6,48,7],[43,0,43,3],[43,6,43,7],[44,0,44,3],[44,6,44,7],[45,0,45,3],[45,6,45,7],[52,0,52,3],[52,6,52,7],[53,0,53,3],[53,6,53,7],[54,0,54,3],[54,6,54,7],[49,0,49,3],[49,6,49,7],[50,0,50,3],[50,6,50,7],[51,0,51,3],[51,6,51,7],[58,0,58,3],[58,6,58,7],[59,0,59,3],[59,6,59,7],[60,0,60,3],[60,6,60,7],[55,0,55,3],[55,6,55,7],[56,0,56,3],[56,6,56,7],[57,0,57,3],[57,6,57,7],[64,0,64,3],[64,6,64,7],[65,0,65,3],[65,6,65,7],[66,0,66,3],[66,6,66,7],[61,0,61,3],[61,6,61,7],[62,0,62,3],[62,6,62,7],[63,0,63,3],[63,6,63,7],[70,0,70,3],[70,6,70,7],[71,0,71,3],[71,6,71,7],[72,0,72,3],[72,6,72,7],[67,0,67,3],[67,6,67,7],[68,0,68,3],[68,6,68,7],[69,0,69,3],[69,6,69,7],[77,0,77,3],[77,6,77,7],[78,0,78,3],[78,6,78,7],[79,0,79,3],[79,6,79,7],[73,0,73,3],[73,6,73,7],[74,0,74,3],[74,6,74,7],[75,0,75,3],[76,0,76,3],[76,6,76,7],[83,0,83,3],[83,6,83,7],[84,0,84,3],[84,6,84,7],[85,0,85,3],[85,6,85,7],[80,0,80,3],[80,6,80,7],[81,0,81,3],[81,6,81,7],[82,0,82,3],[82,6,82,7],[89,0,89,3],[89,6,89,7],[90,0,90,3],[90,6,90,7],[91,0,91,3],[91,6,91,7],[86,0,86,3],[86,6,86,7],[87,0,87,3],[87,6,87,7],[88,0,88,3],[88,6,88,7],[95,0,95,3],[95,6,95,7],[96,0,96,3],[96,6,96,7],[97,0,97,3],[97,6,97,7],[92,0,92,3],[92,6,92,7],[93,0,93,3],[93,6,93,7],[94,0,94,3],[94,6,94,7]]}
["ENGINS","N° PARC","NIVEAU CARBURANT","NIVEAU HUILE + EAU","ETAT CARROSSERIE","NETTOYAGE CARROSSERIE","PHARES GABARITS CLIGNOS","GIRO           +                    2 TONS"]
["VTUTP"]
[null,null,null,"VTUTP",null,null,"Observations"]
["Cabine",null,null,null,null,null,null,"PAGE 1"]
["Gilet de signalisation haute visibilité (orange) ",null,null,null,3,"PRESENT"]
["Cric",null,null,null,1,"PRESENT"]
["Lampe de ronde ",null,null,null,2,"PRESENT"]
["Levier ",null,null,null,1,"PRESENT"]
["Papiers du véhicule ",null,null,null,1,"PRESENT"]
["Triangle de pré-signalisation ",null,null,null,2,"PRESENT"]
["Jeu Cles ascensseur ",null,null,null,1,"PRESENT"]
["CAISSE ELEC"]
["Adaptateur 220 V Maréchal mâle / ménager  femelle ",null,null,null,2,"PRESENT"]
["Adaptateur 220 V ménager mâle / Maréchal femelle  ",null,null,null,2,"PRESENT"]
["Boîtier de dérivation",null,null,null,1,"PRESENT"]
["Enrouleur électrique 220 V - 25 m prise Maréchal",null,null,null,2,"PRESENT"]
["GUEPE"]
["Combinaison anti-guêpes avec gants et casque ",null,null,null,2,"PRESENT"]
[" Bidon d’insecticide 5 litres ",null,null,null,2,"PRESENT"]
[" Pulvérisateur 1.5 litres ",null,null,null,1,"PRESENT"]
["Un rouleaux de sac poubelles",null,null,null,1,"PRESENT"]
["CAISSE TIRFOR "]
["Câble 20 m pour tirfor 1.6 T ",null,null,null,1,"PRESENT"]
["Elingue 2 T - 4 m ",null,null,null,1,"PRESENT"]
["Levier de manoeuvre pour tirfor  ",null,null,null,1,"PRESENT"]
["Tirfor 1.6 T",null,null,null,1,"PRESENT"]
["  Poulie à flasque ouvrante ",null,null,null,1,"PRESENT"]
["Manille 4.75 T ",null,null,null,2,"PRESENT"]
["Sangle plate 2 T - 4 m (verte) ",null,null,null,1,"PRESENT"]
["Drisse Ø 10 - 30 m ",null,null,null,1,"PRESENT"]
["CAISSE TRONCONNAEUSE"]
["Bidon double mélange 2 temps / huile de chaîne",null,null,null,1,"PRESENT"]
["Tronçonneuse à chaîne ",null,null,null,1,"PRESENT"]
["Paire de jambière de protection tronçonnage ",null,null,null,1,"PRESENT"]
["Chaîne de rechange ",null,null,null,1,"PRESENT"]
["CAISSE TRONCONNAEUSE",null,null,null,null,null,null,"PAGE 2"]
["Scie égoïne + étui 1",null,null,null,1,"PRESENT"]
["Clef à bougie ",null,null,null,1,"PRESENT"]
["Casque forestier   ",null,null,null,1,"PRESENT"]
["Casque anti bruit",null,null,null,1,"PRESENT"]
["CAISSE A OUTILS"]
["Tournevis cruciforme",null,null,null,1,"PRESENT"]
["1 Clef à molette",null,null,null,1,"PRESENT"]
["1 Marteau rivoir",null,null,null,1,"PRESENT"]
["1 Pince coupante",null,null,null,1,"PRESENT"]
["1 Pince multiprises",null,null,null,1,"PRESENT"]
["1 Tournevis plat",null,null,null,1,"PRESENT"]
["1 Massette",null,null,null,1,"PRESENT"]
["Clef triangle de 14",null,null,null,1,"PRESENT"]
["CAISSE INNONDATION"]
["Pantalon inondation WADERS ",null,null,null,2,"PRESENT"]
["Pompe électrique d’épuisement 30m3/h",null,null,null,1,"PRESENT"]
["Vêtement de pluie (veste + pantalon) ",null,null,null,3,"PRESENT"]
["Tuyau Ø 45 - 20 m (Si pompe Ø 40) ",null,null,null,2,"PRESENT"]
["Tuyau Ø 70 - 20 m (Si pompe Ø 65) ",null,null,null,2,"PRESENT"]
["Ecope",null,null,null,2,"PRESENT"]
["CAISSE DEBLAIEMENT GRAVAS ET PROTECTION DE TOITUTE "]
[" Seau de maçon 12 litres ",null,null,null,2,"PRESENT"]
[" Sac à gravats renforcés",null,null,null,5,"PRESENT"]
["Bâche de protection 10 m x 3 m ",null,null,null,2,"PRESENT"]
["CAPUCINE"]
["Hache à pic ",null,null,null,1,"PRESENT"]
["Coupe boulon  ",null,null,null,1,"PRESENT"]
["Masse tranche",null,null,null,1,"PRESENT"]
["Pioche + Manche ",null,null,null,1,"PRESENT"]
["Pince Bonnot + étui ",null,null,null,1,"PRESENT"]
["Hachette  + étui ",null,null,null,1,"PRESENT"]
["Outil de Force et de Déblaiement",null,null,null,1,"PRESENT"]
["Pied de Biche",null,null,null,1,"PRESENT"]
["Lot de sauvetage",null,null,null,1,"PRESENT"]
[" Cône de balisage 750 mm ",null,null,null,6,"PRESENT"]
["Triangle de signalisation 700 mm",null,null,null,1,"PRESENT"]
["Balai de cantonnier ",null,null,null,1,"PRESENT"]
[" Bec verseur flexible",null,null,null,1,"PRESENT"]
["Clef de barrage  ",null,null,null,1,"PRESENT"]
["CAPUCINE",null,null,null,null,null,null,"PAGE 3"]
["Clef de tabouret ",null,null,null,1,"PRESENT"]
["Clef de tampon  ",null,null,null,1,"PRESENT"]
[" Commande Ø 8 - 25 m ",null,null,null,2,"PRESENT"]
["Cordage nylon Ø 16 - 20 m ",null,null,null,1,"PRESENT"]
["Curette ",null,null,null,1,"PRESENT"]
["Lampe de ronde ",null,null,null,1,"PRESENT"]
["Pelle  ",null,null,null,1,"PRESENT"]
["Piquet d’arrimage 600 mm ",null,null,null,null,"PRESENT"]
["Presson ",null,null,null,1,"PRESENT"]
["Raclette caoutchouc  ",null,null,null,2,"PRESENT"]
["Rouleau de rubalise Rouge A4000297 ",null,null,null,1,"PRESENT"]
["Rouleau de rubalise",null,null,null,1,"PRESENT"]
["Rouleau de scotch toilé gris ",null,null,null,2,"PRESENT"]
["Tuyau annelé d’évacuation 10 m",null,null,null,1,"PRESENT"]
["Aspirateur  70 litres",null,null,null,1,"PRESENT"]
["Accessoires pour aspirateur (tubes, suceur, flexible) ",null,null,null,1,"PRESENT"]
["Bidon d’absorbant",null,null,null,1,"PRESENT"]
[" Bidon de sciure ",null,null,null,2,"PRESENT"]
["Echelle à coulisse 3 plans 2.75 m - 6.25 m",null,null,null,1,"PRESENT"]
[" Extincteur Poudre ABC 9 kg",null,null,null,1,"PRESENT"]
["Groupe électrogène 4 kVA",null,null,null,1,"PRESENT"]
["Projecteur halogène avec prise Maréchal 300 W sur trépied",null,null,null,2,"PRESENT"]

{"sheet":"CdC","index":2,"n_rows":23,"n_cols":3,"rows_kept":23,"cut":false,"hidden":false,"merged":[]}
[]
[]
[null,null,"Transfere entre deux feuille excel et alerte email"]
[]
[null,null,"PINPOM69 - 25 févr. 2018 à 20:18 - Dernière réponse : f894009 "]
[null,null,"- 26 févr. 2018 à 11:47"]
[null,null,"Bonjour,"]
[]
[null,null,"J’ai créé un fichier excel avec plusieurs feuilles qui correspond à des inventaires de véhicules."]
[]
[null,null,"Je souhaiterais que quand je modifie la colonne F dans les différentes feuilles (dans la colonne F se trouve un menue déroulent a validation de donne, marque le suivant : présent, manquant et détériorée) qu’elles apparaissent dans la feuille vérification des véhicules dans la colonne I qui est marqué MATERIEL et ce pour chaque véhicule."]
[]
[null,null,"Exemple : si je modifie une ligne dans inventaire FPT, je la passe en manquant je souhaite que sa apparaisse dans la colonne I de la feuille vérification des véhicule."]
[]
[null,null,"Je souhaite aussi si possible recevoir un email quand on passe en manquant ou détériorée, dans cette email si possible je souhaite qui soit marquer la feuille et la ligne qui a été modifier."]
[]
[null,null,"ci joint le fichier : https://www.cjoint.com/c/HBztpNXXsqj"]
[]
[null,null,"Me suis-je bien exprimée ?"]
[]
[null,null,"Pourriez-vous m'aidez s'il vous plait."]
[]
[null,null,"Vous remerciant d'avance."]

{"sheet":"verification des vehicules","index":3,"n_rows":32,"n_cols":12,"rows_kept":32,"cut":false,"hidden":false,"merged":[[29,11,31,12],[29,9,31,9],[29,0,31,0],[29,1,31,1],[29,2,31,2],[29,3,31,3],[29,4,31,4],[29,5,31,5],[29,6,31,6],[29,7,31,7],[26,7,28,7],[23,7,25,7],[20,7,22,7],[17,7,19,7],[8,0,8,1],[17,2,19,2],[20,2,22,2],[23,2,25,2],[14,4,16,4],[17,4,19,4],[23,4,25,4],[20,4,22,4],[9,3,9,5],[26,6,28,6],[26,0,28,0],[20,5,22,5],[17,5,19,5],[14,5,16,5],[26,5,28,5],[26,1,28,1],[23,1,25,1],[20,1,22,1],[26,3,28,3],[23,3,25,3],[20,3,22,3],[23,5,25,5],[26,2,28,2],[26,4,28,4],[14,2,16,2],[26,11,28,12],[23,11,25,12],[10,0,13,0],[10,1,13,1],[17,3,19,3],[14,3,16,3],[23,6,25,6],[20,6,22,6],[17,6,19,6],[14,6,16,6],[14,0,16,0],[20,0,22,0],[23,0,25,0],[17,0,19,0],[17,1,19,1],[14,1,16,1],[10,11,13,12],[10,10,13,10],[2,2,2,9],[8,6,8,9],[10,2,13,2],[10,4,13,4],[10,6,13,6],[10,7,13,7],[10,9,13,9],[10,5,13,5],[10,8,13,8],[9,7,9,8],[14,7,16,7],[20,11,22,12],[17,11,19,12],[14,11,16,12],[14,9,16,9]]}
[]
[]
[null,null,"VERIFICATIONS  DES  VEHICULES"]
[null,"JOUR","MOIS","ANNEE"]
["Date :"]
[]
[]
[]
["Equipe de Garde N°",null,null,null,null,null," Nom et Visa du Chef de garde :"]
[null,null,null,"Code Couleur pour le Materiel",null,null,"OK","MANQUANT",null,"DETERIOREE"]
["ENGINS","N° PARC","NIVEAU CARBURANT","NIVEAU","ETAT CARROSSERIE","NETTOYAGE CARROSSERIE","PHARES GABARITS CLIGNOS","GIRO           +                    2 TONS","MATERIEL","DESINFECTION        DU VSAV","NOM DES PERSONES QUI ON FAIT LES L'INVENTAIRE ET  DESINFECTION DU VSAV","MATERIEL MANQUANTS Observations"]
[null,null,null,"HUILE"]
[null,null,null,"+"]
[null,null,null,"EAU"]
["VSAV",{"$f":"'inventaire VSAV'!B2","v":0},{"$f":"'inventaire VSAV'!C2","v":0},{"$f":"'inventaire VSAV'!D2","v":0},{"$f":"'inventaire VSAV'!E2","v":0},{"$f":"'inventaire VSAV'!F2","v":0},{"$f":"'inventaire VSAV'!G2","v":0},{"$f":"'inventaire VSAV'!H2","v":0},1,{"$f":"'inventaire VSAV'!I2","v":0}]
[null,null,null,null,null,null,null,null,0]
[null,null,null,null,null,null,null,null,"198/199"]
["FPT",{"$f":"'inventaire FPT'!B2","v":0},{"$f":"'inventaire FPT'!C2","v":0},{"$f":"'inventaire FPT'!D2","v":0},{"$f":"'inventaire FPT'!E2","v":0},{"$f":"'inventaire FPT'!F2","v":0},{"$f":"'inventaire FPT'!G2","v":0},{"$f":"'inventaire FPT'!H2","v":0},0]
[null,null,null,null,null,null,null,null,0]
[null,null,null,null,null,null,null,null,"138/139"]
["VTUTP",{"$f":"'inventaire VTUTP'!B2","v":0},{"$f":"'inventaire VTUTP'!C2","v":0},{"$f":"'inventaire VTUTP'!D2","v":0},{"$f":"'inventaire VTUTP'!E2","v":0},{"$f":"'inventaire VTUTP'!F2","v":0},{"$f":"'inventaire VTUTP'!G2","v":0},{"$f":"'inventaire VTUTP'!H2","v":0},0]
[null,null,null,null,null,null,null,null,0]
[null,null,null,null,null,null,null,null,"92/92"]
["VLCDG VFI",{"$f":"'inventaire VLCDG'!B2","v":0},{"$f":"'inventaire VLCDG'!C2","v":0},{"$f":"'inventaire VLCDG'!D2","v":0},{"$f":"'inventaire VLCDG'!E2","v":0},{"$f":"'inventaire VLCDG'!F2","v":0},{"$f":"'inventaire VLCDG'!G2","v":0},{"$f":"'inventaire VLCDG'!H2","v":0},0]
[null,null,null,null,null,null,null,null,0]
[null,null,null,null,null,null,null,null,"32/32"]
["RSR",{"$f":"'inventaire RSR'!B2","v":0},{"$f":"'inventaire RSR'!C2","v":0},{"$f":"'inventaire RSR'!D2","v":0},{"$f":"'inventaire RSR'!E2","v":0},{"$f":"'inventaire RSR'!F2","v":0},{"$f":"'inventaire RSR'!G2","v":0},{"$f":"'inventaire RSR'!H2","v":0},0]
[null,null,null,null,null,null,null,null,0]
[null,null,null,null,null,null,null,null,"43/43"]
["LOTS PROMPT SECOURS",null,null,null,null,null,null,null,3]
[null,null,null,null,null,null,null,null,0]
[null,null,null,null,null,null,null,null,"72/75"]

{"sheet":"inventaire VSAV","index":4,"n_rows":233,"n_cols":9,"rows_kept":233,"cut":false,"hidden":false,"merged":[[160,0,160,3],[161,0,161,3],[173,0,173,3],[170,0,170,3],[171,0,171,3],[178,0,178,3],[177,0,177,3],[179,0,179,3],[182,0,182,3],[183,0,183,3],[184,0,184,3],[196,6,196,7],[198,0,198,3],[198,6,198,7],[199,0,199,3],[199,6,199,7],[200,0,200,3],[200,6,200,7],[185,0,185,3],[186,0,186,3],[187,0,187,3],[191,6,191,7],[192,6,192,7],[193,6,193,7],[194,6,194,7],[201,6,201,7],[55,0,55,3],[55,6,55,7],[231,0,231,3],[231,6,231,7],[46,0,46,3],[74,6,74,7],[73,6,73,7],[74,0,74,3],[73,0,73,3],[104,0,104,3],[102,0,102,3],[104,6,104,7],[102,6,102,7],[103,0,103,3],[103,6,103,7],[108,6,108,7],[108,0,108,3],[157,0,157,3],[157,6,157,7],[137,6,137,7],[158,0,158,3],[158,6,158,7],[147,0,147,3],[211,0,211,3],[212,0,212,3],[214,0,214,3],[215,0,215,3],[206,0,206,3],[207,0,207,3],[213,0,213,3],[209,0,209,3],[210,0,210,3],[221,0,221,3],[222,0,222,3],[223,0,223,3],[224,0,224,3],[225,0,225,3],[216,0,216,3],[217,0,217,3],[218,0,218,3],[219,0,219,3],[220,0,220,3],[204,0,204,3],[205,0,205,3],[190,0,190,3],[191,0,191,3],[192,0,192,3],[193,0,193,3],[194,0,194,3],[196,0,196,3],[188,0,188,3],[189,0,189,3],[195,0,195,3],[202,0,202,3],[203,0,203,3],[201,0,201,3],[197,0,197,3],[141,0,141,3],[142,0,142,3],[162,0,162,3],[165,0,165,3],[180,0,180,3],[181,0,181,3],[176,0,176,3],[150,0,150,3],[151,0,151,3],[152,0,152,3],[153,0,153,3],[154,0,154,3],[163,0,163,3],[164,0,164,3],[166,0,166,3],[167,0,167,3],[169,0,169,3],[168,0,168,3],[174,0,174,3],[175,0,175,3],[159,0,159,3],[149,0,149,3],[143,0,143,3],[172,0,172,3],[128,0,128,3],[156,0,156,3],[129,0,129,3],[130,0,130,3],[131,0,131,3],[123,0,123,3],[124,0,124,3],[125,0,125,3],[126,0,126,3],[127,0,127,3],[137,0,137,3],[138,0,138,3],[139,0,139,3],[155,0,155,3],[132,0,132,3],[133,0,133,3],[134,0,134,3],[135,0,135,3],[136,0,136,3],[144,0,144,3],[145,0,145,3],[146,0,146,3],[148,0,148,3],[140,0,140,3],[92,0,92,3],[93,0,93,3],[94,0,94,3],[101,0,101,3],[119,0,119,3],[120,0,120,3],[121,0,121,3],[122,0,122,3],[109,0,109,3],[116,0,116,3],[113,0,113,3],[117,0,117,3],[118,0,118,3],[112,0,112,3],[111,0,111,3],[115,0,115,3],[114,0,114,3],[95,0,95,3],[227,0,227,3],[228,0,228,3],[229,0,229,3],[230,0,230,3],[67,0,67,3],[66,0,66,3],[76,0,76,3],[77,0,77,3],[78,0,78,3],[79,0,79,3],[86,0,86,3],[69,0,69,3],[70,0,70,3],[71,0,71,3],[72,0,72,3],[75,0,75,3],[80,0,80,3],[99,0,99,3],[100,0,100,3],[89,0,89,3],[90,0,90,3],[91,0,91,3],[87,0,87,3],[88,0,88,3],[226,0,226,3],[61,0,61,3],[62,0,62,3],[63,0,63,3],[64,0,64,3],[65,0,65,3],[56,0,56,3],[57,0,57,3],[58,0,58,3],[59,0,59,3],[60,0,60,3],[68,0,68,3],[96,0,96,3],[97,0,97,3],[98,0,98,3],[105,0,105,3],[106,0,106,3],[107,0,107,3],[110,0,110,3],[81,0,81,3],[82,0,82,3],[83,0,83,3],[84,0,84,3],[85,0,85,3],[44,0,44,3],[45,0,45,3],[52,0,52,3],[53,0,53,3],[54,0,54,3],[33,0,33,3],[34,0,34,3],[35,0,35,3],[36,0,36,3],[37,0,37,3],[47,0,47,3],[48,0,48,3],[49,0,49,3],[50,0,50,3],[51,0,51,3],[43,0,43,3],[42,0,42,3],[41,0,41,3],[40,0,40,3],[39,0,39,3],[38,0,38,3],[13,0,13,3],[14,0,14,3],[26,0,26,3],[27,0,27,3],[28,0,28,3],[29,0,29,3],[32,0,32,3],[20,0,20,3],[21,0,21,3],[23,0,23,3],[24,0,24,3],[25,0,25,3],[31,0,31,3],[30,0,30,3],[22,0,22,3],[2,0,2,3],[3,0,3,3],[4,0,4,3],[5,0,5,3],[6,0,6,3],[8,0,8,3],[9,0,9,3],[11,0,11,3],[12,0,12,3],[7,0,7,3],[10,0,10,3],[15,6,15,7],[16,6,16,7],[17,6,17,7],[18,6,18,7],[19,6,19,7],[20,6,20,7],[21,6,21,7],[23,6,23,7],[15,0,15,3],[16,0,16,3],[17,0,17,3],[18,0,18,3],[19,0,19,3],[22,6,22,7],[5,6,5,7],[6,6,6,7],[8,6,8,7],[9,6,9,7],[11,6,11,7],[12,6,12,7],[13,6,13,7],[14,6,14,7],[7,6,7,7],[10,6,10,7],[24,6,24,7],[25,6,25,7],[26,6,26,7],[27,6,27,7],[28,6,28,7],[29,6,29,7],[32,6,32,7],[33,6,33,7],[34,6,34,7],[31,6,31,7],[30,6,30,7],[36,6,36,7],[37,6,37,7],[44,6,44,7],[45,6,45,7],[52,6,52,7],[53,6,53,7],[54,6,54,7],[56,6,56,7],[57,6,57,7],[47,6,47,7],[48,6,48,7],[49,6,49,7],[50,6,50,7],[51,6,51,7],[43,6,43,7],[42,6,42,7],[41,6,41,7],[40,6,40,7],[39,6,39,7],[38,6,38,7],[58,6,58,7],[59,6,59,7],[60,6,60,7],[61,6,61,7],[62,6,62,7],[63,6,63,7],[64,6,64,7],[65,6,65,7],[66,6,66,7],[226,6,226,7],[227,6,227,7],[228,6,228,7],[229,6,229,7],[230,6,230,7],[67,6,67,7],[143,6,143,7],[164,6,164,7],[169,6,169,7],[170,6,170,7],[171,6,171,7],[183,6,183,7],[167,6,167,7],[166,6,166,7],[216,6,216,7],[211,6,211,7],[195,6,195,7],[190,6,190,7],[182,6,182,7],[178,6,178,7],[68,6,68,7],[69,6,69,7],[70,6,70,7],[71,6,71,7],[72,6,72,7],[75,6,75,7],[76,6,76,7],[77,6,77,7],[78,6,78,7],[79,6,79,7],[86,6,86,7],[87,6,87,7],[88,6,88,7],[80,6,80,7],[81,6,81,7],[82,6,82,7],[83,6,83,7],[84,6,84,7],[85,6,85,7],[89,6,89,7],[90,6,90,7],[91,6,91,7],[92,6,92,7],[93,6,93,7],[94,6,94,7],[110,6,110,7],[116,6,116,7],[113,6,113,7],[112,6,112,7],[111,6,111,7],[115,6,115,7],[114,6,114,7],[107,6,107,7],[101,6,101,7],[105,6,105,7],[106,6,106,7],[97,6,97,7],[98,6,98,7],[99,6,99,7],[100,6,100,7],[95,6,95,7],[117,6,117,7],[118,6,118,7],[119,6,119,7],[120,6,120,7],[121,6,121,7],[125,6,125,7],[122,6,122,7],[123,6,123,7],[124,6,124,7],[160,6,160,7],[161,6,161,7],[126,6,126,7],[127,6,127,7],[128,6,128,7],[129,6,129,7],[130,6,130,7],[145,6,145,7],[146,6,146,7],[148,6,148,7],[141,6,141,7],[142,6,142,7],[144,6,144,7],[131,6,131,7],[132,6,132,7],[133,6,133,7],[134,6,134,7],[135,6,135,7],[136,6,136,7],[138,6,138,7],[139,6,139,7],[140,6,140,7],[209,6,209,7],[210,6,210,7],[149,6,149,7],[150,6,150,7],[174,6,174,7],[175,6,175,7],[188,6,188,7],[189,6,189,7],[151,6,151,7],[152,6,152,7],[153,6,153,7],[154,6,154,7],[162,6,162,7],[165,6,165,7],[180,6,180,7],[181,6,181,7],[185,6,185,7],[186,6,186,7],[187,6,187,7],[172,6,172,7],[177,6,177,7],[176,6,176,7],[173,6,173,7],[159,6,159,7],[168,6,168,7],[208,0,208,3],[208,6,208,7],[156,6,156,7],[222,6,222,7],[223,6,223,7],[224,6,224,7],[225,6,225,7],[3,6,3,7],[212,6,212,7],[214,6,214,7],[215,6,215,7],[217,6,217,7],[218,6,218,7],[219,6,219,7],[220,6,220,7],[221,6,221,7],[202,6,202,7],[203,6,203,7],[204,6,204,7],[205,6,205,7],[206,6,206,7],[207,6,207,7],[213,6,213,7]]}
["ENGINS","N° PARC","NIVEAU CARBURANT","NIVEAU HUILE + EAU","ETAT CARROSSERIE","NETTOYAGE CARROSSERIE","PHARES GABARITS CLIGNOS","GIRO           +                    2 TONS","DESINFECTION        DU VSAV"]
["VSAV"]
["INVENTAIRE VSAV"]
["Designation",null,null,null,"QTE",null,"Observations"]
["Cabine ",null,null,null,null,null,null,"PAGE 1"]
["carte a essence",null,null,null,1,"PRESENT"]
["Fiche \"refus de transport\" ",null,null,null,5,"PRESENT"]
["Avis D'Intervention",null,null,null,5,"PRESENT"]
["Fiche bilan ",null,null,null,10,"PRESENT"]
["Fiche DAE",null,null,null,5,"PRESENT"]
["Kit SINUS V3",null,null,null,1,"PRESENT"]
["Plaquette A3 (support fiche bilan) ",null,null,null,1,"PRESENT"]
["Téléphone portable + chargeur",null,null,null,1,"PRESENT"]
["Brassard auto-enroulable",null,null,null,1,"PRESENT"]
["Clef triangle de 14 ",null,null,null,1,"PRESENT"]
["Cric",null,null,null,1,"PRESENT"]
["Démonte roue",null,null,null,1,"PRESENT"]
["Papiers du véhicule",null,null,null,1,"PRESENT"]
["Triangle de pré-signalisation",null,null,null,1,"PRESENT"]
["Gilet de signalisation haute visibilité (orange)",null,null,null,3,"PRESENT"]
["Boîte de gants à usage unique dans les portes ",null,null,null,1,"PRESENT"]
["Lampe de ronde",null,null,null,null,"PRESENT"]
["Lampe de ronde couder",null,null,null,1,"PRESENT"]
[" portes latérales "]
["Commande",null,null,null,1,"PRESENT"]
["Gilet de sauvetage",null,null,null,1,"PRESENT"]
["Extincteur Poudre ABC 9 kg",null,null,null,1,"PRESENT"]
["Cale de roue ",null,null,null,1,"PRESENT"]
["Chaise portoir avec sangles",null,null,null,1,"PRESENT"]
["Casque anti-bruit",null,null,null,1,"PRESENT"]
["Paire de Gants Cuir",null,null,null,1,"PRESENT"]
["Pince Bono",null,null,null,1,"PRESENT"]
["Portoir souple d'évacuation",null,null,null,1,"PRESENT"]
["Cône de balisage télescopique 500 mm",null,null,null,4,"PRESENT"]
["Rouleau de rubalise Jaune \"SDMIS - Danger ne pas franchir\"",null,null,null,1,"PRESENT"]
["Cellule"]
["Brancard sur portoir avec sangles ",null,null,null,1,"PRESENT"]
["Colliers cervicaux 6 tailles, dans housse ",null,null,null,1,"PRESENT"]
["Colliers cervicaux T1",null,null,null,1,"PRESENT"]
["Colliers cervicaux T2",null,null,null,1,"PRESENT"]
["Colliers cervicaux T3",null,null,null,1,"PRESENT"]
["Colliers cervicaux Pedia 1",null,null,null,1,"PRESENT"]
["Colliers cervicaux Pedia 2",null,null,null,1,"PRESENT"]
["Colliers cervicaux Pedia 3",null,null,null,1,"PRESENT"]
["Matelas coquille adulte",null,null,null,1,"PRESENT"]
["Plan dur sur portoirde  Brancard ",null,null,null,1,"PRESENT"]
["Sous Le Brancard",null,null,null,null,null,null,"PAGE 2"]
["Brancard cuillère",null,null,null,1,"PRESENT"]
["Attelle à traction :"]
["attelle à traction",null,null,null,1,"PRESENT"]
["bracelet de maintien de cheville",null,null,null,1,"PRESENT"]
["housse de rangement (bleu)",null,null,null,1,"PRESENT"]
["Boîte de gants à usage unique (2 tailles différentes) ",null,null,null,2,"PRESENT"]
["TROUSSE DE CONTRÔLE HEMORRAGIQUE"]
["Bande adhésive de contention",null,null,null,1,"PRESENT"]
["Paquet de Compresses",null,null,null,5,"PRESENT"]
["Bande cohésive",null,null,null,1,"PRESENT"]
["Couverture de survie",null,null,null,5,"PRESENT"]
["Garrot artériel \"tourniquet\"",null,null,null,5,"PRESENT"]
["Garrot artériel coton",null,null,null,2,"PRESENT"]
["Marqueur indélébile",null,null,null,1,"PRESENT"]
["Paire de ciseaux Jesco",null,null,null,1,"PRESENT"]
["Paire de gants non stériles",null,null,null,5,"PRESENT"]
["Pansement absorbant stérile",null,null,null,4,"MANQUANT","manque 1 ,3 present dans la trousse, pas de stock au CT"]
["Pansement compressif",null,null,null,2,"PRESENT"]
["Pansement hémostatique",null,null,null,1,"PRESENT"]
["Rouleau de scotch de combat",null,null,null,2,"PRESENT"]
[" cote gauche"]
["Attelles à dépression :",null,null,null,null,"PRESENT"]
["petite",null,null,null,1,"PRESENT"]
["moyenne",null,null,null,1,"PRESENT"]
["grande",null,null,null,1,"PRESENT"]
["Pompe à vide pour Attelles à dépression",null,null,null,1,"PRESENT"]
["Champs Stérile",null,null,null,1,"PRESENT"]
["Poche De Froid ",null,null,null,1,"PRESENT"]
["housse de rangement",null,null,null,1,"PRESENT"]
["Matelas coquille pédiatrique :",null,null,null,null,"PRESENT"]
["matelas coquile pédiatrique",null,null,null,1,"PRESENT"]
["housse de rangement",null,null,null,1,"PRESENT"]
["Pompe à vide pour matelas coquille",null,null,null,1,"PRESENT"]
["Attelle cervico-thoracique :"]
["attelle cervico-thoracique",null,null,null,1,"PRESENT"]
["coussins",null,null,null,3,"PRESENT"]
["sangle frontale",null,null,null,1,"PRESENT"]
["mentonnière",null,null,null,1,"PRESENT"]
["housse de rangement ",null,null,null,1,"PRESENT"]
["Bouteille O2 - 15 litres",null,null,null,1,"PRESENT"]
["Bouteille O2 - 5 litres",null,null,null,1,"PRESENT"]
["Aspirateur de mucosité électrique",null,null,null,1,"PRESENT"]
["en haut à gauche "]
["Drap jetable",null,null,null,5,"PRESENT"]
["Housse mortuaire",null,null,null,1,"PRESENT"]
["Kit Accident d'Exposition au Sang (A.E.S)",null,null,null,1,"PRESENT"]
["Kit jetable de l’aspirateur de mucosité",null,null,null,1,"PRESENT"]
["Kit Risque Infectieux Respiratoire (R.I.R) niveau 1",null,null,null,1,"PRESENT"]
[]
[" en haut à droite ",null,null,null,null,null,null,"PAGE 3"]
["Sangle de contention cheville avec 2 extrémités cousues ensembles",null,null,null,1,"PRESENT"]
["Sangle de contention poignet",null,null,null,2,"PRESENT"]
["Sangle de portage équipier",null,null,null,2,"PRESENT"]
["Kit Risque Infectieux Respiratoire (R.I.R) niveau 2A ",null,null,null,1,"PRESENT"]
[" Capucine"]
["Maintiant De Tete ",null,null,null,1,"PRESENT"]
["housse de rangement ",null,null,null,1,"PRESENT"]
["Sangle Araignée",null,null,null,1,"PRESENT"]
["Couverture bacterio",null,null,null,2,"PRESENT"]
["Gilet de signalisation haute visibilité (orange)",null,null,null,1,"PRESENT"]
["SAC DE SECOURISME",null,null,null,null,"PRESENT"]
["Detecteur De CO",null,null,null,1,"PRESENT"]
["POCHE CENTRALE"]
["Brulstop en 10x10",null,null,null,4,"PRESENT"]
["Brulstop en 20x20",null,null,null,2,"PRESENT"]
["Brulstop facial",null,null,null,1,"PRESENT"]
["DSA",null,null,null,1,"PRESENT"]
["kit électrodes adultes",null,null,null,2,"PRESENT"]
["kit électrodes  enfant",null,null,null,1,"PRESENT"]
["Glucomètre :"]
[" glucomètre",null,null,null,1,"PRESENT"]
["paquet de compresses",null,null,null,1,"PRESENT"]
["aiguilles autopiquantes",null,null,null,5,"PRESENT"]
["gels de ressucrage",null,null,null,2,"PRESENT"]
["flacon de bandelettes",null,null,null,1,"PRESENT"]
["sacoche de rangement",null,null,null,1,"PRESENT"]
["Kit Risque Infectieux Respiratoire (R.I.R) niveau 1 ",null,null,null,1,"PRESENT"]
["Lampe pupilles",null,null,null,1,"PRESENT"]
["Oxymètre de pouls :"]
["oxymètre de pouls",null,null,null,1,"PRESENT"]
["piles de rechange type LR03",null,null,null,2,"PRESENT"]
["sacoche ",null,null,null,1,"PRESENT"]
["Pince à écharde",null,null,null,1,"PRESENT"]
["Réglette EVA",null,null,null,1,"PRESENT"]
["Thermomètre",null,null,null,1,"PRESENT"]
["protection à usage unique pour thermomètre",null,null,null,5,"PRESENT"]
["Boîte de gel de ressucrage",null,null,null,1,"PRESENT"]
["Paire de ciseaux de dégagement",null,null,null,1,"PRESENT"]
["POCHE ROUGE"]
["Garros artériel \"tourniquet\" ",null,null,null,2,"PRESENT"]
["Garros artériel coton",null,null,null,2,"PRESENT"]
["Pansemens compressifs d'urgence ",null,null,null,2,"PRESENT"]
["Paquets de compresses",null,null,null,5,"PRESENT"]
["POCHE VERTE"]
["Bande extensible 10 cm",null,null,null,2,"PRESENT"]
["Bande extensible 5 cm",null,null,null,2,"PRESENT"]
["Paquets de compresses",null,null,null,5,"PRESENT"]
["Champ de soins stérile",null,null,null,2,"PRESENT"]
["Chlorhéxidrine 0,05% (dose de 5 ml)",null,null,null,5,"PRESENT"]
["Couverture de survie adulte",null,null,null,2,"PRESENT"]
["POCHE VERTE",null,null,null,null,null,null,"PAGE 4"]
["Echarpe triangulaire",null,null,null,2,"PRESENT"]
["Miniversol (Chlorure de sodium 0.9% - 50 ml)",null,null,null,2,"PRESENT"]
["Paire de ciseaux",null,null,null,1,"PRESENT"]
["Poche de froid",null,null,null,1,"PRESENT"]
["Sac vomitoire",null,null,null,2,"PRESENT"]
["Sparadrap",null,null,null,1,"PRESENT"]
["Sparaplaie",null,null,null,2,"PRESENT"]
["POCHE DE COTE"]
["Paire de gants à usage unique ",null,null,null,5,"PRESENT"]
["gel hydroalcoolique",null,null,null,1,"PRESENT"]
["Poche De Froid",null,null,null,1,"PRESENT"]
["Stéthoscope",null,null,null,1,"PRESENT"]
["Tensiomètre avec 3 brassards",null,null,null,1,"PRESENT"]
["Sac DASRI",null,null,null,3,"PRESENT"]
["SAC OXYGENOTHERAPIE"]
["POCHE CENTRALE"]
["Sacoche Pedia ",null,null,null,1,"PRESENT"]
["Aspirateur de mucosité enfant ",null,null,null,1,"PRESENT"]
["Canule de Guedel Noir",null,null,null,1,"PRESENT"]
["Canule de Guedel Bleus",null,null,null,1,"PRESENT"]
["Masque HC enfant ",null,null,null,1,"PRESENT"]
["Masque à visière ",null,null,null,3,"PRESENT"]
["Raccord biconique ",null,null,null,1,"PRESENT"]
["Sacoche Adulte",null,null,null,1,"PRESENT"]
["Masque à visière ",null,null,null,3,"PRESENT"]
["Masque HC adulte",null,null,null,1,"PRESENT"]
["Raccord biconique",null,null,null,2,"PRESENT"]
["Sonde buccopharyngée CH26",null,null,null,1,"PRESENT"]
["Canule de Guedel Orange",null,null,null,1,"PRESENT"]
["Canule de Guedel Vert",null,null,null,1,"PRESENT"]
["Canule de Guedel Blanche",null,null,null,1,"PRESENT"]
["POCHE CENTRALE"]
["Aspirateur de mucosité manuel « TWIN POMP »",null,null,null,1,"PRESENT"]
["Bouteille O2 - 5 litres",null,null,null,1,"PRESENT"]
["Masque HC adulte",null,null,null,1,"PRESENT"]
["Versol (Chlorure de sodiul 0.9% - 500 ml)",null,null,null,2,"PRESENT"]
["POCHE DE COTE"]
["Insufflateur adulte à usage unique",null,null,null,1,"PRESENT"]
["Insufflateur néonatal à usage unique",null,null,null,1,"PRESENT"]
["Insufflateur pédiatrique à usage unique",null,null,null,1,"PRESENT"]
["TIROIR BLANC"]
["Collecteur d’aiguilles usagées 0.6 ",null,null,null,1,"PRESENT"]
["Poche de froid",null,null,null,2,"PRESENT"]
["Sac urinal",null,null,null,2,"PRESENT"]
["Sac vomitoire",null,null,null,5,"PRESENT"]
["TIROIR BLEU"]
["Aspirateur de mucosité enfant",null,null,null,1,"PRESENT"]
["Canule de Guedel (5 tailles différentes) ",null,null,null,1,"PRESENT"]
["Canule de Guedel Noir",null,null,null,1,"PRESENT"]
["TIROIR BLEU",null,null,null,null,null,null,"PAGE 5"]
["Canule de Guedel Bleus",null,null,null,1,"PRESENT"]
["Canule de Guedel Orange",null,null,null,1,"PRESENT"]
["Canule de Guedel Vert",null,null,null,1,"PRESENT"]
["Canule de Guedel Blanche",null,null,null,1,"PRESENT"]
["Insufflateur adulte à usage unique",null,null,null,1,"PRESENT"]
["Masque à visière",null,null,null,2,"PRESENT"]
["Masque HC adulte",null,null,null,2,"PRESENT"]
["Masque HC enfant",null,null,null,1,"PRESENT"]
["Raccord biconique",null,null,null,2,"PRESENT"]
["Sonde buccopharyngée CH26",null,null,null,2,"PRESENT"]
["TIROIR ROUGE"]
["Garrot artériel coton",null,null,null,2,"PRESENT"]
["Kit Accouchement",null,null,null,1,"PRESENT"]
["Kit Membre sectionné",null,null,null,1,"PRESENT"]
["Pansement compressif d'urgence",null,null,null,2,"PRESENT"]
["TIROIR  VERT"]
["Bande extensible 10 cm",null,null,null,3,"PRESENT"]
["Bande extensible 5 cm",null,null,null,3,"PRESENT"]
["Champ de soins stérile",null,null,null,3,"PRESENT"]
["Chlorhéxidrine 0,05% (dose de 5 ml)",null,null,null,10,"PRESENT"]
["Couverture de survie adulte",null,null,null,2,"PRESENT"]
["Echarpe triangulaire",null,null,null,2,"PRESENT"]
["Miniversol (Chlorure de sodium 0.9% - 50 ml)",null,null,null,5,"PRESENT"]
["Paire de ciseaux",null,null,null,1,"PRESENT"]
["Paquet de compresses",null,null,null,5,"PRESENT"]
["Sparadrap ",null,null,null,2,"PRESENT"]
["Sparaplaie",null,null,null,2,"PRESENT"]
["Versol (Chlorure de sodiul 0.9% - 500 ml)",null,null,null,2,"PRESENT"]
["TIROIR DU BAS"]
["Chiffon d'essuyage",null,null,null,10,"PRESENT"]
["Gel hydroalcoolique",null,null,null,1,"PRESENT"]
["Rouleau Sac DASRI",null,null,null,1,"PRESENT"]
["Spray désinfectant",null,null,null,1,"PRESENT"]
["Rouleaux Sacs Poubelles",null,null,null,1,"PRESENT"]
["maj 03/11/2018 dsp"]

{"sheet":"inventaire FPT","index":5,"n_rows":164,"n_cols":8,"rows_kept":164,"cut":false,"hidden":false,"merged":[[163,0,163,1],[2,0,2,7],[133,6,133,7],[135,6,135,7],[122,6,122,7],[123,6,123,7],[124,6,124,7],[125,6,125,7],[161,6,161,7],[162,6,162,7],[127,6,127,7],[128,6,128,7],[129,6,129,7],[131,6,131,7],[132,6,132,7],[149,6,149,7],[150,6,150,7],[152,6,152,7],[153,6,153,7],[155,6,155,7],[156,6,156,7],[140,6,140,7],[157,6,157,7],[158,6,158,7],[143,6,143,7],[144,6,144,7],[145,6,145,7],[146,6,146,7],[147,6,147,7],[148,6,148,7],[114,6,114,7],[115,6,115,7],[116,6,116,7],[117,6,117,7],[118,6,118,7],[138,6,138,7],[139,6,139,7],[134,6,134,7],[136,6,136,7],[108,6,108,7],[109,6,109,7],[110,6,110,7],[111,6,111,7],[94,6,94,7],[95,6,95,7],[96,6,96,7],[97,6,97,7],[99,6,99,7],[100,6,100,7],[101,6,101,7],[102,6,102,7],[103,6,103,7],[76,6,76,7],[77,6,77,7],[75,6,75,7],[84,6,84,7],[74,6,74,7],[83,6,83,7],[104,6,104,7],[106,6,106,7],[107,6,107,7],[98,6,98,7],[86,6,86,7],[87,6,87,7],[88,6,88,7],[89,6,89,7],[91,6,91,7],[92,6,92,7],[93,6,93,7],[79,6,79,7],[80,6,80,7],[81,6,81,7],[82,6,82,7],[64,6,64,7],[65,6,65,7],[66,6,66,7],[67,6,67,7],[68,6,68,7],[69,6,69,7],[71,6,71,7],[72,6,72,7],[55,6,55,7],[56,6,56,7],[57,6,57,7],[58,6,58,7],[59,6,59,7],[61,6,61,7],[63,6,63,7],[70,6,70,7],[45,6,45,7],[46,6,46,7],[49,6,49,7],[50,6,50,7],[51,6,51,7],[52,6,52,7],[53,6,53,7],[54,6,54,7],[47,6,47,7],[29,6,29,7],[30,6,30,7],[31,6,31,7],[32,6,32,7],[33,6,33,7],[36,6,36,7],[37,6,37,7],[43,6,43,7],[44,6,44,7],[38,6,38,7],[39,6,39,7],[40,6,40,7],[41,6,41,7],[42,6,42,7],[35,6,35,7],[34,6,34,7],[20,6,20,7],[21,6,21,7],[22,6,22,7],[23,6,23,7],[25,6,25,7],[26,6,26,7],[28,6,28,7],[10,6,10,7],[11,6,11,7],[12,6,12,7],[13,6,13,7],[14,6,14,7],[16,6,16,7],[18,6,18,7],[19,6,19,7],[3,2,3,4],[5,0,5,3],[4,0,4,3],[6,0,6,3],[7,0,7,3],[15,0,15,3],[8,0,8,3],[9,0,9,3],[3,6,3,7],[5,6,5,7],[4,6,4,7],[6,6,6,7],[7,6,7,7],[15,6,15,7],[9,6,9,7],[10,0,10,3],[11,0,11,3],[12,0,12,3],[13,0,13,3],[14,0,14,3],[16,0,16,3],[17,0,17,3],[18,0,18,3],[19,0,19,3],[20,0,20,3],[21,0,21,3],[22,0,22,3],[23,0,23,3],[24,1,24,3],[25,0,25,3],[26,0,26,3],[28,0,28,3],[27,1,27,3],[29,0,29,3],[30,0,30,3],[31,0,31,3],[32,0,32,3],[33,0,33,3],[34,0,34,3],[44,0,44,3],[45,0,45,3],[46,0,46,3],[48,0,48,3],[49,0,49,3],[50,0,50,3],[51,0,51,3],[52,0,52,3],[35,0,35,3],[36,0,36,3],[37,0,37,3],[43,0,43,3],[38,0,38,3],[39,0,39,3],[40,0,40,3],[41,0,41,3],[42,0,42,3],[53,0,53,3],[47,0,47,3],[54,0,54,3],[55,0,55,3],[56,0,56,3],[57,0,57,3],[58,0,58,3],[59,0,59,3],[60,0,60,1],[61,0,61,3],[62,1,62,3],[63,0,63,3],[64,0,64,3],[65,0,65,3],[66,0,66,3],[67,0,67,3],[68,0,68,3],[69,0,69,3],[71,0,71,3],[72,0,72,3],[70,0,70,3],[73,1,73,3],[79,0,79,3],[80,0,80,3],[81,0,81,3],[82,0,82,3],[76,0,76,3],[77,0,77,3],[75,0,75,3],[84,0,84,3],[78,0,78,4],[83,0,83,3],[74,0,74,3],[85,1,85,3],[86,0,86,3],[87,0,87,3],[88,0,88,3],[89,0,89,3],[91,0,91,3],[92,0,92,3],[93,0,93,3],[90,1,90,3],[94,0,94,3],[95,0,95,3],[96,0,96,3],[97,0,97,3],[99,0,99,3],[98,0,98,3],[100,0,100,3],[101,0,101,3],[102,0,102,3],[103,0,103,3],[104,0,104,3],[105,0,105,1],[105,2,105,3],[106,0,106,3],[107,0,107,3],[108,0,108,3],[109,0,109,3],[110,0,110,3],[111,0,111,3],[112,1,112,3],[113,0,113,3],[114,0,114,3],[115,0,115,3],[116,0,116,3],[117,0,117,3],[118,0,118,3],[126,1,126,3],[134,0,134,3],[154,0,154,3],[145,0,145,3],[146,0,146,3],[147,0,147,3],[148,0,148,3],[149,0,149,3],[150,0,150,3],[152,0,152,3],[153,0,153,3],[137,1,137,3],[138,0,138,3],[139,0,139,3],[140,0,140,3],[141,0,141,3],[151,1,151,3],[142,0,142,3],[143,0,143,3],[144,0,144,3],[136,0,136,3],[121,1,121,3],[161,0,161,3],[162,0,162,3],[141,6,141,7],[122,0,122,3],[159,6,159,7],[160,6,160,7],[127,0,127,3],[123,0,123,3],[124,0,124,3],[125,0,125,3],[128,0,128,3],[129,0,129,3],[130,0,130,3],[131,0,131,3],[132,0,132,3],[133,0,133,3],[135,0,135,3],[155,0,155,3],[156,0,156,3],[157,0,157,3],[158,0,158,3],[159,0,159,3],[160,0,160,3],[142,6,142,7]]}
["ENGINS","N° PARC","NIVEAU CARBURANT","NIVEAU HUILE + EAU","ETAT CARROSSERIE","NETTOYAGE CARROSSERIE","PHARES GABARITS CLIGNOS","GIRO           +                    2 TONS"]
["FPT"]
["FPT"]
[null,"Cabine AV","Designation",null,null,"Qte","Observations"]
["Brassard auto-enroulable",null,null,null,1,"PRESENT"]
["Pince Bonnot + étui",null,null,null,1,"PRESENT"]
["Lampe de ronde couder",null,null,null,1,"PRESENT"]
["Détecteur de CO",null,null,null,1,"PRESENT"]
["CAISSE CENTRALE "]
["Papiers du véhicule",null,null,null,1,"PRESENT"]
[" Enveloppe avec 2 ETIQUETTE COUPURE GAZ + COLIER",null,null,null,1,"PRESENT"]
["Note de Service pour le depannage des Vehicule ",null,null,null,1,"PRESENT"]
["Rouleau de rubalise Jaune \"SDIS 69 - Danger ne pas franchir\"",null,null,null,1,"PRESENT"]
["Rouleau de rubalise Rouge \"SDIS 69 - Danger ne pas franchir\"",null,null,null,1,"PRESENT"]
["Rouleau de rubalise Rouge / blanche",null,null,null,1,"PRESENT"]
["Nouvelles clés trianglulaires de 14 mm (pour trappes d'accés a la coupure d'urgence des bornes (Bluely) )",null,null,null,1,"PRESENT"]
["Gants életriques 1000 volts",null,null,null,1,"PRESENT"]
["BOITE A CLEFS"]
["ECOLE DES MARAIS",null,null,null,3,"PRESENT"]
["STADE DE FOOT ET RUGBY",null,null,null,4,"PRESENT"]
["A 46 SUD",null,null,null,1,"PRESENT"]
["PORTE D'ENTREE GYNNASE DU C.E.S",null,null,null,1,"PRESENT"]
["LOBO CELLIOSE",null,null,null,1,"PRESENT"]
["Clef Barrieres en Alu Commune de SOLAIZE",null,null,null,1,"PRESENT"]
["Cabine AR","Designation",null,null,"Qte"]
["ARI 9 litres / 300 bars",null,null,null,4,"PRESENT"]
["Masques ARI",null,null,null,4,"PRESENT"]
["Cabine AR","Designation",null,null,"Qte",null,null,"PAGE 2"]
["Balise sonore de signalisation",null,null,null,4,"PRESENT"]
["Cagoule de fuite",null,null,null,2,"PRESENT"]
["Lampe de ronde couder pour les equipiers",null,null,null,4,"PRESENT"]
["Commande Ø 8 - 25 m + sac",null,null,null,2,"PRESENT"]
["Gilet de signalisation haute visibilité (orange)",null,null,null,6,"PRESENT"]
["Lampe de ronde",null,null,null,2,"PRESENT"]
["Lampe de ronde couder",null,null,null,2,"PRESENT"]
["Hachette + étui",null,null,null,1,"PRESENT"]
["Outil de Force et de Déblaiement + étui",null,null,null,1,"PRESENT"]
["Courroie",null,null,null,4,"PRESENT"]
["LOT BINOME COTER GAUCHE ",null,null,null,1,"PRESENT"]
["Cale de porte",null,null,null,4,"PRESENT"]
["Liaison personnelle",null,null,null,2,"PRESENT"]
["Craies Jaune",null,null,null,1,"PRESENT"]
["Craies Rouge",null,null,null,1,"PRESENT"]
["LOT BINOME COTER DROITE",null,null,null,1,"PRESENT"]
["Cale de porte",null,null,null,4,"PRESENT"]
["Liaison personnelle",null,null,null,2,"PRESENT"]
["Craies Jaune",null,null,null,1,"PRESENT"]
["Craies Rouge",null,null,null,1,"PRESENT"]
["SOUS LA BANQUETTE AR"]
["Valise Premier secours",null,null,null,1,"PRESENT"]
["Triangle de pré-signalisation",null,null,null,2,"PRESENT"]
["Cric",null,null,null,1,"PRESENT"]
["Levier de levage cabine",null,null,null,1,"PRESENT"]
["Ecope",null,null,null,2,"PRESENT"]
["Clef de barrage Gaz 14",null,null,null,1,"PRESENT"]
["Clef de barrage Gaz 23",null,null,null,1,"PRESENT"]
["Clef de barrage Gaz 30",null,null,null,1,"PRESENT"]
["Clef de barrage Gaz 50",null,null,null,1,"PRESENT"]
["Trépied",null,null,null,1,"PRESENT"]
["halligan tool",null,null,null,1,"PRESENT"]
["Extérieur  ARG ",null,null,null,null,null,null,"PAGE 3"]
["Cale de roue",null,null,null,1,"PRESENT"]
["1 Coffre ARG ","Designation",null,null,"Qte"]
["Extincteur Poudre ABC 9 kg",null,null,null,1,"PRESENT"]
["Extincteur CO2 9 Kg",null,null,null,1,"PRESENT"]
["ARI 9 litres / 300 bars",null,null,null,2,"PRESENT"]
["Masques ARI",null,null,null,2,"PRESENT"]
["Balise sonore de signalisation",null,null,null,2,"PRESENT"]
["Lot de sauvetage",null,null,null,1,"PRESENT"]
["Ligne guide 50 m",null,null,null,1,"PRESENT"]
["brassières à flottabilité permanente ",null,null,null,1,"PRESENT"]
["Madrier de franchissement Ø 70",null,null,null,2,"PRESENT"]
["Madrier de franchissement Ø 100",null,null,null,2,"PRESENT"]
["2 Coffre ARG ","Designation",null,null,"Qte"]
["Clef de barrage",null,null,null,1,"PRESENT"]
["Canon portable oscillant OZZI  Ø 65 - 1000 l/mn",null,null,null,1,"PRESENT"]
["Tuyau Ø 110 - 20 m",null,null,null,2,"PRESENT"]
["Tuyau Ø 110 - 10 m",null,null,null,2,"PRESENT"]
["Caisse Conducteur "]
["Division 65 / 2 x 40",null,null,null,1,"PRESENT"]
["Bouchon Ø 100",null,null,null,2,"PRESENT"]
["Bouchon Ø 65",null,null,null,2,"PRESENT"]
["Tuyau Ø 70 - 5 m",null,null,null,2,"PRESENT"]
["Tricoise de 100",null,null,null,1,"PRESENT"]
["cle federale",null,null,null,1,"PRESENT"]
["3 Coffre ARG ","Designation",null,null,"Qte"]
["Collecteur à clapet 2 x 65 / 100",null,null,null,1,"PRESENT"]
["Coude d’alimentation Ø 100",null,null,null,1,"PRESENT"]
["Clef de tampon",null,null,null,2,"PRESENT"]
["Coude d’alimentation BA / Ø 45",null,null,null,1,"PRESENT"]
["3 Coffre ARG ","Designation",null,null,"Qte",null,null,"PAGE 4"]
["Lance écran Ø 65 avec raccord tournant",null,null,null,1,"PRESENT"]
["Réduction 100 / 65",null,null,null,1,"PRESENT"]
["Réduction 65 / 40",null,null,null,1,"PRESENT"]
["Réduction 40 / 20 GFR Mâle",null,null,null,1,"PRESENT"]
["Réduction 40 / 20 GFR Femelle",null,null,null,1,"PRESENT"]
["Retenue",null,null,null,1,"PRESENT"]
["Aspiraux Ø 110 - 2 m",null,null,null,5,"PRESENT"]
["Division 65 / 2 x 40 sur devidoire ",null,null,null,1,"PRESENT"]
["Cordage",null,null,null,1,"PRESENT"]
["Manometre de pression",null,null,null,1,"PRESENT"]
["Enrouleur Electrique ( marechal )",null,null,null,1,"PRESENT"]
["  commande",null,null,null,1,"PRESENT"]
["Floteur ",null,null,null,1,"PRESENT"]
[" Crepine ",null,null,null,1,"PRESENT"]
["ARRIER DU VEHICULE ",null,"Designation",null,"Qte"]
["Tuyau Ø 70 40 m  sur devidoire ",null,null,null,10,"PRESENT"]
["Division 65 / 65 / 2 x 40 sur devidoire ",null,null,null,1,"PRESENT"]
["Clef de poteaux",null,null,null,1,"PRESENT"]
["Tricoise de 100",null,null,null,2,"PRESENT"]
["Levier de vanne de secours",null,null,null,1,"PRESENT"]
["Clef pour roulage manuel de la LDT ",null,null,null,1,"PRESENT"]
["Plate-forme ","Designation",null,null,"Qte"]
["Batte à feu",null,null,null,4,"PRESENT"]
["Croissant",null,null,null,1,"PRESENT"]
["Echelle à crochets ",null,null,null,1,"PRESENT"]
["Echelle à coulisse 2 plans 4.66 m - 8.02 m",null,null,null,1,"PRESENT"]
["Coupe latte",null,null,null,1,"PRESENT"]
["Ralonge Coupe latte",null,null,null,1,"PRESENT"]
[]
[]
["3 Coffre ARD ","Designation",null,null,"Qte",null,null,"PAGE 5"]
["Tuyau Ø 45 - 20 m Sur dévidoir latéral",null,null,null,3,"PRESENT"]
["Embout Mousse BF pour LDV",null,null,null,1,"PRESENT"]
["CAISSE DE CALE EN BOIS ",null,null,null,1,"PRESENT"]
["Canne de Remplissage D'ADDITF et EMULSEUR Ø 40",null,null,null,1,"PRESENT"]
["2 Coffre ARD ","Designation",null,null,"Qte"]
["LDV Ø 40 - 100 à 600 l/mn",null,null,null,2,"PRESENT"]
["Tuyau Ø 45 - 20 m",null,null,null,7,"PRESENT"]
["Tuyau Ø 70 - 20 m",null,null,null,3,"PRESENT"]
["CAISSE LOT FEUX DE CHEMINEE"]
["hérisson",null,null,null,4,"PRESENT"]
["Pompe à main",null,null,null,1,"PRESENT"]
["chaine",null,null,null,1,"PRESENT"]
["SEAU ROUGE",null,null,null,2,"PRESENT"]
["SEAU NOIRE",null,null,null,1,"PRESENT"]
["gants pour feu de cheminée",null,null,null,4,"PRESENT"]
["1 Coffre ARD ","Designation",null,null,"Qte"]
["Bidon d’absorbant 30 litres",null,null,null,1,"PRESENT"]
["Cône de balisage télescopique 750 mm",null,null,null,6,"PRESENT"]
["Curette",null,null,null,1,"PRESENT"]
["Grappin",null,null,null,1,"PRESENT"]
["Lance Moyen Foisonnement Ø 40 - 200 l/mn",null,null,null,1,"PRESENT"]
["Enbout Mousse OZZIE",null,null,null,1,"PRESENT"]
["Scie égoïne + étui",null,null,null,1,"PRESENT"]
["Triangle de signalisation 700 mm",null,null,null,1,"PRESENT"]
["Coupe boulon GM",null,null,null,1,"PRESENT"]
["Hache à pic",null,null,null,1,"PRESENT"]
["Masse 5 kg",null,null,null,1,"PRESENT"]
["Presson",null,null,null,1,"PRESENT"]
["Balai de cantonnier",null,null,null,2,"PRESENT"]
["1 Coffre ARD ","Designation",null,null,"Qte",null,null,"PAGE 6"]
["Pelle",null,null,null,1,"PRESENT"]
["Pioche",null,null,null,1,"PRESENT"]
["CAISSE A OUTILS",null,null,null,1]
["Tournevis cruciforme",null,null,null,1,"PRESENT"]
["Clef à molette",null,null,null,1,"PRESENT"]
["Marteau rivoir",null,null,null,1,"PRESENT"]
["Pince coupante",null,null,null,1,"PRESENT"]
["Pince multiprises",null,null,null,1,"PRESENT"]
["Tournevis plat",null,null,null,1,"PRESENT"]
["Massette",null,null,null,1,"PRESENT"]
["Clef triangle de 14",null,null,null,1,"PRESENT"]
["maj 3/11/2018 dsp"]

{"sheet":"inventaire VTUTP","index":6,"n_rows":109,"n_cols":8,"rows_kept":109,"cut":false,"hidden":false,"merged":[[105,6,105,7],[107,6,107,7],[99,6,99,7],[100,6,100,7],[101,6,101,7],[102,6,102,7],[103,6,103,7],[93,6,93,7],[95,6,95,7],[96,6,96,7],[97,6,97,7],[98,6,98,7],[104,6,104,7],[77,6,77,7],[78,6,78,7],[79,6,79,7],[81,6,81,7],[82,6,82,7],[80,6,80,7],[73,6,73,7],[74,6,74,7],[94,6,94,7],[75,6,75,7],[76,6,76,7],[88,6,88,7],[89,6,89,7],[90,6,90,7],[91,6,91,7],[92,6,92,7],[83,6,83,7],[84,6,84,7],[85,6,85,7],[86,6,86,7],[87,6,87,7],[67,6,67,7],[68,6,68,7],[69,6,69,7],[70,6,70,7],[72,6,72,7],[61,6,61,7],[63,6,63,7],[64,6,64,7],[65,6,65,7],[66,6,66,7],[62,6,62,7],[52,6,52,7],[58,6,58,7],[53,6,53,7],[56,6,56,7],[60,6,60,7],[47,6,47,7],[48,6,48,7],[49,6,49,7],[50,6,50,7],[51,6,51,7],[59,6,59,7],[57,6,57,7],[54,6,54,7],[55,6,55,7],[42,6,42,7],[43,6,43,7],[44,6,44,7],[45,6,45,7],[46,6,46,7],[36,6,36,7],[38,6,38,7],[39,6,39,7],[40,6,40,7],[41,6,41,7],[37,6,37,7],[30,6,30,7],[31,6,31,7],[32,6,32,7],[34,6,34,7],[25,6,25,7],[26,6,26,7],[27,6,27,7],[28,6,28,7],[29,6,29,7],[19,6,19,7],[20,6,20,7],[21,6,21,7],[22,6,22,7],[24,6,24,7],[14,6,14,7],[15,6,15,7],[16,6,16,7],[17,6,17,7],[18,6,18,7],[23,6,23,7],[9,6,9,7],[10,6,10,7],[11,6,11,7],[12,6,12,7],[13,6,13,7],[2,6,2,7],[4,6,4,7],[5,6,5,7],[6,6,6,7],[7,6,7,7],[8,6,8,7],[3,0,3,3],[4,0,4,3],[5,0,5,3],[6,0,6,3],[9,0,9,3],[10,0,10,3],[11,0,11,3],[12,0,12,3],[13,0,13,3],[7,0,7,3],[8,0,8,3],[14,0,14,3],[15,0,15,3],[16,0,16,3],[17,0,17,3],[18,0,18,3],[19,0,19,3],[20,0,20,3],[21,0,21,3],[22,0,22,3],[24,0,24,3],[25,0,25,3],[26,0,26,3],[27,0,27,3],[28,0,28,3],[29,0,29,3],[30,0,30,3],[31,0,31,3],[32,0,32,3],[33,0,33,3],[34,0,34,3],[36,0,36,3],[37,0,37,3],[38,0,38,3],[39,0,39,3],[40,0,40,3],[41,0,41,3],[42,0,42,3],[35,0,35,3],[43,0,43,3],[44,0,44,3],[45,0,45,3],[46,0,46,3],[47,0,47,3],[48,0,48,3],[49,0,49,3],[50,0,50,3],[51,0,51,3],[52,0,52,3],[58,0,58,3],[53,0,53,3],[56,0,56,3],[60,0,60,3],[61,0,61,3],[63,0,63,3],[64,0,64,3],[65,0,65,3],[59,0,59,3],[62,0,62,3],[57,0,57,3],[54,0,54,3],[55,0,55,3],[66,0,66,3],[67,0,67,3],[68,0,68,3],[69,0,69,3],[70,0,70,3],[72,0,72,3],[80,0,80,3],[73,0,73,3],[74,0,74,3],[71,0,71,3],[75,0,75,3],[103,0,103,3],[77,0,77,3],[78,0,78,3],[79,0,79,3],[81,0,81,3],[82,0,82,3],[83,0,83,3],[84,0,84,3],[76,0,76,3],[94,0,94,3],[23,0,23,3],[106,0,106,3],[106,6,106,7],[108,0,108,2],[85,0,85,3],[86,0,86,3],[87,0,87,3],[88,0,88,3],[89,0,89,3],[90,0,90,3],[91,0,91,3],[92,0,92,3],[93,0,93,3],[95,0,95,3],[96,0,96,3],[97,0,97,3],[98,0,98,3],[104,0,104,3],[105,0,105,3],[107,0,107,3],[99,0,99,3],[100,0,100,3],[101,0,101,3],[102,0,102,3]]}
["ENGINS","N° PARC","NIVEAU CARBURANT","NIVEAU HUILE + EAU","ETAT CARROSSERIE","NETTOYAGE CARROSSERIE","PHARES GABARITS CLIGNOS","GIRO           +                    2 TONS"]
["VTUTP"]
[null,null,null,"VTUTP",null,null,"Observations"]
["Cabine",null,null,null,null,null,null,"PAGE 1"]
["Gilet de signalisation haute visibilité (orange) ",null,null,null,3,"PRESENT"]
["Cric",null,null,null,1,"PRESENT"]
["Lampe de ronde ",null,null,null,2,"PRESENT"]
["Lampe de ronde couder dans les porte ",null,null,null,2,"PRESENT"]
["Boîte de gants à usage unique dans les portes ",null,null,null,2,"PRESENT"]
["Levier ",null,null,null,1,"PRESENT"]
["Papiers du véhicule ",null,null,null,1,"PRESENT"]
["Triangle de pré-signalisation ",null,null,null,2,"PRESENT"]
["Jeu Cles ascensseur ",null,null,null,1,"PRESENT"]
["CAISSE ELEC"]
["Adaptateur 220 V Maréchal mâle / ménager  femelle ",null,null,null,2,"PRESENT"]
["Adaptateur 220 V ménager mâle / Maréchal femelle  ",null,null,null,2,"PRESENT"]
["Boîtier de dérivation",null,null,null,1,"PRESENT"]
["Enrouleur électrique 220 V - 25 m prise Maréchal",null,null,null,2,"PRESENT"]
["CAISSE GUEPE"]
["Combinaison anti-guêpes avec gants et casque ",null,null,null,2,"PRESENT"]
[" Bidon d’insecticide 5 litres ",null,null,null,1,"PRESENT"]
[" Pulvérisateur 1.5 litres ",null,null,null,1,"PRESENT"]
["Un rouleaux de sac poubelles",null,null,null,1,"PRESENT"]
["Boîte de gants à usage unique",null,null,null,1,"PRESENT"]
["CAISSE TIRFOR "]
["Câble 20 m pour tirfor 1.6 T ",null,null,null,1,"PRESENT"]
["Elingue 2 T - 4 m ",null,null,null,1,"PRESENT"]
["Levier de manoeuvre pour tirfor  ",null,null,null,1,"PRESENT"]
["Tirfor 1.6 T",null,null,null,1,"PRESENT"]
["  Poulie à flasque ouvrante ",null,null,null,1,"PRESENT"]
["Manille 4.75 T ",null,null,null,2,"PRESENT"]
["Sangle plate 2 T - 4 m (verte) ",null,null,null,1,"PRESENT"]
["Drisse Ø 10 - 30 m ",null,null,null,1,"PRESENT"]
["CAISSE TRONCONNAEUSE",null,null,null,null,null,null,"PAGE 2"]
["Bidon double mélange 2 temps / huile de chaîne",null,null,null,1,"PRESENT"]
["CAISSE TRONCONNAEUSE",null,null,null,null,null,null,"PAGE 2"]
["Tronçonneuse à chaîne ",null,null,null,1,"PRESENT"]
["Paire de jambière de protection tronçonnage ",null,null,null,2,"PRESENT"]
["Chaîne de rechange ",null,null,null,1,"PRESENT"]
["Scie égoïne + étui 1",null,null,null,1,"PRESENT"]
["Clef à bougie ",null,null,null,1,"PRESENT"]
["Casque F2 forestier   ",null,null,null,2,"PRESENT"]
["Casque anti bruit",null,null,null,1,"PRESENT"]
["CAISSE A OUTILS"]
["Tournevis cruciforme",null,null,null,1,"PRESENT"]
["1 Clef à molette",null,null,null,1,"PRESENT"]
["1 Marteau rivoir",null,null,null,1,"PRESENT"]
["1 Pince coupante",null,null,null,1,"PRESENT"]
["1 Pince multiprises",null,null,null,1,"PRESENT"]
["1 Tournevis plat",null,null,null,1,"PRESENT"]
["1 Massette",null,null,null,1,"PRESENT"]
["Clef triangle de 14",null,null,null,1,"PRESENT"]
["CAISSE INNONDATION  2/2"]
["Pompe électrique d’épuisement 30m3/h",null,null,null,1,"PRESENT"]
["Coude Ø 70 ",null,null,null,1,"PRESENT"]
["Adaptateur 220 V Maréchal mâle / ménager  femelle ",null,null,null,1,"PRESENT"]
["Vêtement de pluie (veste + pantalon) ",null,null,null,3,"PRESENT"]
["Tuyau Ø 45 - 20 m  ",null,null,null,1,"PRESENT"]
["Pantalon inondation WADERS ",null,null,null,3,"PRESENT"]
["CAISSE INNONDATION  1/2"]
["Tuyau Ø 45 - 20 m ",null,null,null,1,"PRESENT"]
["Tuyau Ø 70 - 20 m ",null,null,null,2,"PRESENT"]
["Réduction 65 / 40",null,null,null,1,"PRESENT"]
["Ecope",null,null,null,2,"PRESENT"]
["CAISSE DEBLAIEMENT GRAVAS ET PROTECTION DE TOITUTE "]
[" Seau de maçon 12 litres ",null,null,null,2,"PRESENT"]
[" Sac à gravats renforcés",null,null,null,5,"PRESENT"]
["Bâche de protection 10 m x 3 m ",null,null,null,2,"PRESENT"]
["CAPUCINE"]
["Hache à pic ",null,null,null,1,"PRESENT"]
["Coupe boulon  ",null,null,null,1,"PRESENT"]
["CAPUCINE",null,null,null,null,null,null,"PAGE 3"]
["Masse tranche",null,null,null,1,"PRESENT"]
["Pince Bonnot + étui ",null,null,null,1,"PRESENT"]
["Hachette  + étui ",null,null,null,1,"PRESENT"]
["Pied de Biche",null,null,null,1,"PRESENT"]
["ARRIER DU VEHICULE"]
["Lot de sauvetage",null,null,null,1,"PRESENT"]
[" Cone de balisage 750 mm ",null,null,null,7,"PRESENT"]
["Triangle de signalisation 700 mm",null,null,null,1,"PRESENT"]
["Pioche + Manche ",null,null,null,1,"PRESENT"]
["Balai de cantonnier ",null,null,null,2,"PRESENT"]
[" Bec verseur flexible",null,null,null,1,"PRESENT"]
["Clef de barrage  ",null,null,null,1,"PRESENT"]
["Clef de tabouret ",null,null,null,1,"PRESENT"]
["Clef de tampon  ",null,null,null,1,"PRESENT"]
[" Commande Ø 8 - 25 m ",null,null,null,2,"PRESENT"]
["Cordage nylon Ø 16 - 20 m ",null,null,null,1,"PRESENT"]
["Curette ",null,null,null,1,"PRESENT"]
["Lampe de ronde ",null,null,null,1,"PRESENT"]
["Pelle  ",null,null,null,2,"PRESENT"]
["Piquet d’arrimage 600 mm ",null,null,null,null,"PRESENT"]
["Presson ",null,null,null,1,"PRESENT"]
["Raclette caoutchouc  ",null,null,null,2,"PRESENT"]
["Outil de Force et de Déblaiement",null,null,null,1,"PRESENT"]
["Rouleau de rubalise Rouge A4000297 ",null,null,null,1,"PRESENT"]
["Rouleau de rubalise",null,null,null,1,"PRESENT"]
["Rouleau de scotch toilé gris ",null,null,null,2,"PRESENT"]
["Tuyau annelé d’évacuation 10 m",null,null,null,1,"PRESENT"]
["Aspirateur  70 litres",null,null,null,1,"PRESENT"]
["Accessoires pour aspirateur (tubes, suceur, flexible) ",null,null,null,1,"PRESENT"]
["Bidon d’absorbant",null,null,null,1,"PRESENT"]
[" Bidon de sciure ",null,null,null,2,"PRESENT"]
["Echelle à coulisse 3 plans 2.75 m - 6.25 m",null,null,null,1,"PRESENT"]
[" Extincteur Poudre ABC 9 kg",null,null,null,1,"PRESENT"]
["Groupe électrogène 4 kVA",null,null,null,1,"PRESENT"]
["les brassières à flottabilité permanente ",null,null,null,1,"PRESENT"]
["Projecteur halogène avec prise Maréchal 300 W sur trépied",null,null,null,2,"PRESENT"]
["MAJ le 3/11/18 dsp"]

{"sheet":"inventaire RSR","index":7,"n_rows":54,"n_cols":8,"rows_kept":54,"cut":false,"hidden":false,"merged":[[40,6,40,7],[41,6,41,7],[42,6,42,7],[43,6,43,7],[44,6,44,7],[50,6,50,7],[51,6,51,7],[52,6,52,7],[45,6,45,7],[46,6,46,7],[47,6,47,7],[48,6,48,7],[49,6,49,7],[33,6,33,7],[36,6,36,7],[37,6,37,7],[38,6,38,7],[39,6,39,7],[35,6,35,7],[28,6,28,7],[29,6,29,7],[30,6,30,7],[31,6,31,7],[32,6,32,7],[23,6,23,7],[24,6,24,7],[25,6,25,7],[26,6,26,7],[27,6,27,7],[18,6,18,7],[19,6,19,7],[20,6,20,7],[21,6,21,7],[22,6,22,7],[13,6,13,7],[14,6,14,7],[15,6,15,7],[16,6,16,7],[17,6,17,7],[3,6,3,7],[5,6,5,7],[6,6,6,7],[7,6,7,7],[12,0,12,3],[7,0,7,3],[8,0,8,3],[9,0,9,3],[10,0,10,3],[11,0,11,3],[8,6,8,7],[9,6,9,7],[10,6,10,7],[11,6,11,7],[12,6,12,7],[2,0,2,3],[3,0,3,3],[4,0,4,3],[5,0,5,3],[6,0,6,3],[13,0,13,3],[14,0,14,3],[15,0,15,3],[16,0,16,3],[17,0,17,3],[18,0,18,3],[19,0,19,3],[20,0,20,3],[21,0,21,3],[22,0,22,3],[23,0,23,3],[24,0,24,3],[25,0,25,3],[28,0,28,3],[29,0,29,3],[26,0,26,3],[36,0,36,3],[27,0,27,3],[37,0,37,3],[38,0,38,3],[39,0,39,3],[30,0,30,3],[31,0,31,3],[32,0,32,3],[33,0,33,3],[35,0,35,3],[34,0,34,3],[40,0,40,3],[41,0,41,3],[42,0,42,3],[43,0,43,3],[44,0,44,3],[50,0,50,3],[51,0,51,3],[52,0,52,3],[45,0,45,3],[46,0,46,3],[47,0,47,3],[48,0,48,3],[49,0,49,3]]}
["ENGINS","N° PARC","NIVEAU CARBURANT","NIVEAU HUILE + EAU","ETAT CARROSSERIE","NETTOYAGE CARROSSERIE","PHARES GABARITS CLIGNOS","GIRO           +                    2 TONS"]
["RSR"]
["INVENTAIRE RSR 3883"]
["Designation",null,null,null,"QTE",null,"Observations"]
["Plateau inférieur",null,null,null,null,null,null,"PAGE 1"]
["Neutraliseur d’air bag (OCTOPUS VL/PL) en sac",null,null,null,1,"PRESENT"]
["Protection des coupes (en sac)",null,null,null,1,"PRESENT"]
["Jeu de CALE ESCALIERE",null,null,null,2,"PRESENT"]
["Jeu de CALE COIN ( GRANDE )",null,null,null,4,"PRESENT"]
["Jeu de CALE COIN ( PETITE )",null,null,null,4,"PRESENT"]
["Jeu de cale CARRE 23 cm / 8  cm",null,null,null,2,"PRESENT"]
["Jeu de cale CARRE 23 cm / 5  cm",null,null,null,2,"PRESENT"]
["Jeu de cale CARRE 23 cm / 3 cm",null,null,null,2,"PRESENT"]
["Ballon de 2000W halogène avec prise maréchal ",null,null,null,1,"PRESENT"]
["Scie sabre électrique",null,null,null,1,"PRESENT"]
["Semelle d’appui pour Ecarteur hydraulique ",null,null,null,1,"PRESENT"]
["Semelle d’appui pour vérin",null,null,null,1,"PRESENT"]
["Bouclier de protection translucide Holmatro",null,null,null,1,"PRESENT"]
["Passage de roue droite"]
["Sangle 3 T - 2 m (bleu)",null,null,null,2,"PRESENT"]
["Adaptateur maréchal / ménager",null,null,null,1,"PRESENT"]
["Embout avec chaînes à crochet 2m",null,null,null,null,"PRESENT"]
["SACOCHE CHEF D'AGREE"]
["Stylo Marqueur gras ( ROUGE ) pour decoupes secours routier",null,null,null,1,"PRESENT"]
["Stylo Marqueur gras ( JAUNE ) pour decoupes secours routier",null,null,null,1,"PRESENT"]
["CORDE A CLIQUETS",null,null,null,2,"PRESENT"]
["GLAS MASTER",null,null,null,1,"PRESENT"]
["Pince coupante",null,null,null,1,"PRESENT"]
["Massette anti rebond",null,null,null,1,"PRESENT"]
["Outil de dégarnissage",null,null,null,2,"PRESENT"]
["Passage de roue gauche"]
["Casque anti-bruit ",null,null,null,2,"PRESENT"]
["Calle de roue ",null,null,null,2,"PRESENT"]
["Pied de biche",null,null,null,1,"PRESENT"]
["Passage de roue gauche",null,null,null,null,null,null,"PAGE 2"]
["Neutraliseur d’air bag ( VALISSE ) ",null,null,null,1,"PRESENT"]
["SACOCHE EQUIPIER",null,null,null,1,"PRESENT"]
["CORDE A CLIQUETS 125kg",null,null,null,2,"PRESENT"]
["CERCLES DE PROTECTION (1 kit de cercle de maintien des protections de coupe )",null,null,null,null,"PRESENT"]
["Plateau superieur"]
["Scie à pare brise (GLAS MASTER) ",null,null,null,1,"PRESENT"]
["Bec verseur ",null,null,null,1,"PRESENT"]
["Bidon tôle carburant 5 L",null,null,null,1,"PRESENT"]
["Enrouleur électrique 20m (220v maréchal) ",null,null,null,1,"PRESENT"]
["Ecarteur hydraulique ",null,null,null,1,"PRESENT"]
["Cisaille écarteur hydraulique combiné ",null,null,null,1,"PRESENT"]
["Cisaille hydraulique lames courbes coupe pedale ",null,null,null,1,"PRESENT"]
["Cisaille hydraulique lames courbes peroquet",null,null,null,1,"PRESENT"]
["Vérin écarteur télescopique ( PETIT )",null,null,null,1,"PRESENT"]
["Vérin écarteur télescopique ( Grand )",null,null,null,1,"PRESENT"]
["Groupe hydraulique thermique ",null,null,null,1,"PRESENT"]
["Groupe électrogène 4Kva essence 4 temps",null,null,null,1,"PRESENT"]
["Purgeur sur Groupe hydraulique thermique ",null,null,null,1,"PRESENT"]
["maj 3/11/2018 dsp"]

{"sheet":"inventaire VLCDG","index":8,"n_rows":40,"n_cols":8,"rows_kept":40,"cut":false,"hidden":false,"merged":[[34,6,34,7],[36,6,36,7],[37,6,37,7],[38,6,38,7],[39,6,39,7],[29,6,29,7],[30,6,30,7],[31,6,31,7],[32,6,32,7],[33,6,33,7],[24,6,24,7],[25,6,25,7],[26,6,26,7],[27,6,27,7],[28,6,28,7],[19,6,19,7],[20,6,20,7],[21,6,21,7],[22,6,22,7],[23,6,23,7],[14,6,14,7],[15,6,15,7],[16,6,16,7],[17,6,17,7],[18,6,18,7],[9,6,9,7],[10,6,10,7],[11,6,11,7],[12,6,12,7],[13,6,13,7],[3,6,3,7],[4,6,4,7],[7,6,7,7],[8,6,8,7],[5,6,5,7],[6,6,6,7],[5,0,5,3],[2,0,2,3],[3,0,3,3],[4,0,4,3],[7,0,7,3],[8,0,8,3],[6,0,6,3],[20,0,20,3],[9,0,9,3],[10,0,10,3],[11,0,11,3],[12,0,12,3],[13,0,13,3],[14,0,14,3],[15,0,15,3],[16,0,16,3],[17,0,17,3],[18,0,18,3],[19,0,19,3],[32,0,32,3],[21,0,21,3],[22,0,22,3],[23,0,23,3],[24,0,24,3],[25,0,25,3],[26,0,26,3],[27,0,27,3],[28,0,28,3],[29,0,29,3],[30,0,30,3],[31,0,31,3],[39,0,39,3],[33,0,33,3],[34,0,34,3],[35,0,35,3],[36,0,36,3],[37,0,37,3],[38,0,38,3]]}
["ENGINS","N° PARC","NIVEAU CARBURANT","NIVEAU HUILE + EAU","ETAT CARROSSERIE","NETTOYAGE CARROSSERIE","PHARES GABARITS CLIGNOS","GIRO           +                    2 TONS"]
["VLCDG"]
["INVENTAIRE VLCDG"]
["Designation",null,null,null,"QTE",null,"Observations"]
["GILETS SP",null,null,null,4,"PRESENT"]
["Lampe de ronde couder dans les porte ",null,null,null,2,"PRESENT"]
["ARRIER DU VEHICULE"]
["GILETS CHEF DE SECTEUR",null,null,null,1,"PRESENT"]
["GILETS COS",null,null,null,1,"PRESENT"]
["SAC PROMPT SECOURS",null,null,null,null,"PRESENT"]
["Cône de balisage télescopique 500 mm",null,null,null,4,"PRESENT"]
["Boîte de gants à usage unique",null,null,null,2,"PRESENT"]
["Megaphone",null,null,null,1,"PRESENT"]
["Rouleau de rubalise Jaune \"SDIS 69 - Danger ne pas franchir\"",null,null,null,1,"PRESENT"]
["Rouleau de rubalise Rouge / blanche",null,null,null,1,"PRESENT"]
["valise chef de groupe",null,null,null,1,"PRESENT"]
["extincteur poudre 2kg",null,null,null,1,"PRESENT"]
["brassières à flottabilité permanente ",null,null,null,1,"PRESENT"]
[null,null,null,null,null,"PRESENT"]
[]
[null,null,null,null,null,"PRESENT"]
[null,null,null,null,null,"PRESENT"]
[null,null,null,null,null,"PRESENT"]
[null,null,null,null,null,"PRESENT"]
[]
[null,null,null,null,null,"PRESENT"]
[null,null,null,null,null,"PRESENT"]
[]
[null,null,null,null,null,"PRESENT"]
[null,null,null,null,null,"PRESENT"]
[null,null,null,null,null,"PRESENT"]
[null,null,null,null,null,"PRESENT"]
[null,null,null,null,null,"PRESENT"]
[null,null,null,null,null,"PRESENT"]
[null,null,null,null,null,"PRESENT"]
[null,null,null,null,null,"PRESENT"]
[null,null,null,null,null,"PRESENT"]
[null,null,null,null,null,"PRESENT"]
[null,null,null,null,null,"PRESENT"]
[null,null,null,null,null,"PRESENT"]

{"sheet":"inventaire LOTS PROMPT SECOURS","index":9,"n_rows":91,"n_cols":8,"rows_kept":91,"cut":false,"hidden":false,"merged":[[90,0,90,1],[79,0,79,3],[80,0,80,3],[80,6,80,7],[81,0,81,3],[81,6,81,7],[82,0,82,3],[82,6,82,7],[76,0,76,3],[76,6,76,7],[77,0,77,3],[77,6,77,7],[78,0,78,3],[78,6,78,7],[88,0,88,3],[88,6,88,7],[89,0,89,3],[89,6,89,7],[83,0,83,3],[83,6,83,7],[72,0,72,3],[72,6,72,7],[73,0,73,3],[73,6,73,7],[74,0,74,3],[75,0,75,3],[75,6,75,7],[69,0,69,3],[69,6,69,7],[70,0,70,3],[70,6,70,7],[71,0,71,3],[71,6,71,7],[66,0,66,3],[66,6,66,7],[67,0,67,3],[67,6,67,7],[68,0,68,3],[68,6,68,7],[63,0,63,3],[63,6,63,7],[64,0,64,3],[64,6,64,7],[65,0,65,3],[65,6,65,7],[60,0,60,3],[60,6,60,7],[61,0,61,3],[61,6,61,7],[62,0,62,3],[62,6,62,7],[56,0,56,3],[56,6,56,7],[57,0,57,3],[57,6,57,7],[58,0,58,3],[59,0,59,3],[59,6,59,7],[53,0,53,3],[53,6,53,7],[54,0,54,3],[54,6,54,7],[55,0,55,3],[55,6,55,7],[49,0,49,3],[49,6,49,7],[50,0,50,3],[51,0,51,3],[51,6,51,7],[52,0,52,3],[52,6,52,7],[46,0,46,3],[46,6,46,7],[47,0,47,3],[47,6,47,7],[48,0,48,3],[48,6,48,7],[42,0,42,3],[43,0,43,3],[43,6,43,7],[44,0,44,3],[44,6,44,7],[45,0,45,3],[45,6,45,7],[39,0,39,3],[39,6,39,7],[40,0,40,3],[40,6,40,7],[41,0,41,3],[41,6,41,7],[36,0,36,3],[36,6,36,7],[37,0,37,3],[37,6,37,7],[38,0,38,3],[38,6,38,7],[33,0,33,3],[33,6,33,7],[34,0,34,3],[34,6,34,7],[35,0,35,3],[35,6,35,7],[30,0,30,3],[30,6,30,7],[31,0,31,3],[31,6,31,7],[32,0,32,3],[32,6,32,7],[27,0,27,3],[27,6,27,7],[28,0,28,3],[28,6,28,7],[29,0,29,3],[29,6,29,7],[24,0,24,3],[24,6,24,7],[25,0,25,3],[25,6,25,7],[26,0,26,3],[26,6,26,7],[21,0,21,3],[21,6,21,7],[22,0,22,3],[22,6,22,7],[23,0,23,3],[23,6,23,7],[18,0,18,3],[18,6,18,7],[19,0,19,3],[19,6,19,7],[20,0,20,3],[20,6,20,7],[7,0,7,3],[7,6,7,7],[8,0,8,3],[8,6,8,7],[15,0,15,3],[15,6,15,7],[16,0,16,3],[16,6,16,7],[17,0,17,3],[17,6,17,7],[12,0,12,3],[12,6,12,7],[13,0,13,3],[13,6,13,7],[14,0,14,3],[14,6,14,7],[0,0,0,7],[84,0,84,3],[84,6,84,7],[85,0,85,3],[85,6,85,7],[86,0,86,3],[86,6,86,7],[87,0,87,3],[87,6,87,7],[2,0,2,3],[2,6,2,7],[3,0,3,3],[3,6,3,7],[4,0,4,3],[5,0,5,3],[5,6,5,7],[9,0,9,3],[9,6,9,7],[10,0,10,3],[10,6,10,7],[11,0,11,3],[11,6,11,7],[6,0,6,3],[6,6,6,7]]}
["inventaire LOTS PROMPT SECOURS"]
[]
["SAC DE SECOURISME",null,null,null,null,"PRESENT"]
["Detecteur De CO",null,null,null,1,"PRESENT"]
["POCHE CENTRALE"]
["Brulstop en 10x10",null,null,null,4,"PRESENT"]
["Brulstop en 20x20",null,null,null,2,"PRESENT"]
["Brulstop facial",null,null,null,1,"PRESENT"]
["DSA",null,null,null,1,"PRESENT"]
["kit électrodes adultes",null,null,null,2,"PRESENT"]
["kit électrodes  enfant",null,null,null,1,"PRESENT"]
["Glucomètre :"]
[" glucomètre",null,null,null,1,"PRESENT"]
["paquet de compresses",null,null,null,1,"PRESENT"]
["aiguilles autopiquantes",null,null,null,5,"PRESENT"]
["gels de ressucrage",null,null,null,2,"PRESENT"]
["flacon de bandelettes",null,null,null,1,"PRESENT"]
["sacoche de rangement",null,null,null,1,"PRESENT"]
["Kit Risque Infectieux Respiratoire (R.I.R) niveau 1 ",null,null,null,1,"PRESENT"]
["Lampe pupilles",null,null,null,1,"PRESENT"]
["Oxymètre de pouls :"]
["oxymètre de pouls",null,null,null,1,"PRESENT"]
["piles de rechange type LR03",null,null,null,2,"MANQUANT","il n'a pas dans sac prompt secours, et il y'en na plus en stock "]
["sacoche ",null,null,null,1,"PRESENT"]
["Pince à écharde",null,null,null,1,"PRESENT"]
["Réglette EVA",null,null,null,1,"PRESENT"]
["Thermomètre",null,null,null,1,"PRESENT"]
["protection à usage unique pour thermomètre",null,null,null,5,"PRESENT"]
["Boîte de gel de ressucrage",null,null,null,1,"PRESENT"]
["Paire de ciseaux de dégagement",null,null,null,1,"MANQUANT","il en n'a pas dans le sac prompt de secours"]
["POCHE ROUGE"]
["Garros artériel \"tourniquet\" ",null,null,null,2,"PRESENT"]
["Garros artériel coton",null,null,null,2,"PRESENT"]
["Pansemens compressifs d'urgence ",null,null,null,2,"PRESENT"]
["Paquets de compresses",null,null,null,5,"PRESENT"]
["POCHE VERTE"]
["Bande extensible 10 cm",null,null,null,2,"PRESENT"]
["Bande extensible 5 cm",null,null,null,2,"PRESENT"]
["Paquets de compresses",null,null,null,5,"PRESENT"]
["Champ de soins stérile",null,null,null,2,"PRESENT"]
["Chlorhéxidrine 0,05% (dose de 5 ml)",null,null,null,5,"PRESENT"]
["Couverture de survie adulte",null,null,null,2,"PRESENT"]
["POCHE VERTE"]
["Echarpe triangulaire",null,null,null,2,"PRESENT"]
["Miniversol (Chlorure de sodium 0.9% - 50 ml)",null,null,null,2,"PRESENT"]
["Paire de ciseaux",null,null,null,1,"PRESENT"]
["Poche de froid",null,null,null,1,"PRESENT"]
["Sac vomitoire",null,null,null,2,"PRESENT"]
["Sparadrap",null,null,null,1,"PRESENT"]
["Sparaplaie",null,null,null,2,"PRESENT"]
["POCHE DE COTE",null,null,null,null,null,null,"PAGE 2"]
["Paire de gants à usage unique ",null,null,null,5,"PRESENT"]
["gel hydroalcoolique",null,null,null,1,"PRESENT"]
["Poche De Froid",null,null,null,1,"PRESENT"]
["Stéthoscope",null,null,null,1,"PRESENT"]
["Tensiomètre avec 3 brassards",null,null,null,1,"MANQUANT","il manque 2 brassard a tension, dans le sac prompt de secours"]
["Sac DASRI",null,null,null,3,"PRESENT"]
["SAC OXYGENOTHERAPIE"]
["POCHE CENTRALE"]
["Sacoche Pedia ",null,null,null,1,"PRESENT"]
["Aspirateur de mucosité enfant ",null,null,null,1,"PRESENT"]
["Canule de Guedel Noir",null,null,null,1,"PRESENT"]
["Canule de Guedel Bleus",null,null,null,1,"PRESENT"]
["Masque HC enfant ",null,null,null,1,"PRESENT"]
["Masque à visière ",null,null,null,3,"PRESENT"]
["Raccord biconique ",null,null,null,1,"PRESENT"]
["Sacoche Adulte",null,null,null,1,"PRESENT"]
["Masque à visière ",null,null,null,3,"PRESENT"]
["Masque HC adulte",null,null,null,1,"PRESENT"]
["Raccord biconique",null,null,null,2,"PRESENT"]
["Sonde buccopharyngée CH26",null,null,null,1,"PRESENT"]
["Canule de Guedel Orange",null,null,null,1,"PRESENT"]
["Canule de Guedel Vert",null,null,null,1,"PRESENT"]
["Canule de Guedel Blanche",null,null,null,1,"PRESENT"]
["POCHE CENTRALE"]
["Aspirateur de mucosité manuel « TWIN POMP »",null,null,null,1,"PRESENT"]
["Bouteille O2 - 5 litres",null,null,null,1,"PRESENT"]
["Masque HC adulte",null,null,null,1,"PRESENT"]
["Versol (Chlorure de sodiul 0.9% - 500 ml)",null,null,null,2,"PRESENT"]
["POCHE DE COTE"]
["Insufflateur adulte à usage unique",null,null,null,1,"PRESENT"]
["Insufflateur néonatal à usage unique",null,null,null,1,"PRESENT"]
["Insufflateur pédiatrique à usage unique",null,null,null,1,"PRESENT"]
["Colliers cervicaux"]
["Colliers cervicaux T1",null,null,null,1,"PRESENT"]
["Colliers cervicaux T2",null,null,null,1,"PRESENT"]
["Colliers cervicaux T3",null,null,null,1,"PRESENT"]
["Colliers cervicaux Pedia 1",null,null,null,1,"PRESENT"]
["Colliers cervicaux Pedia 2",null,null,null,1,"PRESENT"]
["Colliers cervicaux Pedia 3",null,null,null,1,"PRESENT"]
["maj 3/11/2018 dsp"]

{"sheet":"validation de donnees","index":10,"n_rows":38,"n_cols":11,"rows_kept":38,"cut":false,"hidden":false,"merged":[]}
[" Nom du Chef de garde :","Equipe de Garde N°","NOM DU PERSONNELLES DU CI","JOUR","MOIS","ANNEE","NETTOYAGE CARROSSERIE  DESINFECTION  DU VSAV","NIVEAU CARBURANT","ETAT CARROSSERIE","MATERIEL","PHARES GABARITS CLIGNOS"]
["ABDELKRIM C",1,"ARCHER",1,1,2017,"FAIT","Plein","Correct","PRESENT","Fonctione"]
["BEDINI F",2,"ABDELKRIM",2,2,2018,"PAS FAIT","3/4","Rayures","DETERIOREE","Ne fonctione pas"]
["CATHERBRAS D",3,"BASTID",3,3,2019,null,"1/2","Déformation","MANQUANT"]
["DAVAL G",4,"BEDINI ",4,4,2020,null,"1/4"]
["GAGUIN L",5,"CEDDIA ",7,7,2023]
["GIRARD F",null,"CARRE ",5,5,2021]
["GIRAUDON F",null,"CATHEBRAS ",6,6,2022]
["FIORDALISI J",null,"CELANT ",8,8,2024]
["LE RUYET ",null,"CESURE ",9,9,2025]
["MEUNIER L",null,"DAVAL  G",10,10,2026]
["NEYRET ",null,"DAVAL  Q",11,11,2027]
["PASINATO H",null,"DA SILVA ",12,12,2028]
[null,null,"DEL VALLE ",13,null,2029,null,null,"A B C D E F G H I J K L M N O P Q R S T U V W X Y Z"]
[null,null,"DEVERS",14]
[null,null,"DUSSERT-BRESSON",15]
[null,null,"FIORDALISI",16]
[null,null,"GAGUIN ",17]
[null,null,"GEORGES ",18]
[null,null,"GETAS",19]
[null,null,"GRECH",20]
[null,null,"GIRARD ",21]
[null,null,"GIRAUDON",22]
[null,null,"GIROUD",23]
[null,null,"GOUBIER",24]
[null,null,"INDERCHIT",25]
[null,null,"JARLOT",26]
[null,null,"JUVIGNY ",27]
[null,null,"KURTZ ",28]
[null,null,"LEARDI",29]
[null,null,"LE RUYET ",30]
[null,null,"LONGO",31]
[null,null,"MEUNIER"]
[null,null,"MICHEL"]
[null,null,"NEYRET "]
[null,null,"NUNES"]
[null,null,"PASINATO"]
[null,null,"PASTOR "]